fUSD/lending_fUSD_20250213
["ID","MTS","AMOUNT","RATE_DAILY","PERIOD"]
[352988480,1739476243446,-500.0,0.00013698,2]
[352988481,1739476243455,-280.585061,0.00013698,2]
[352988482,1739476243464,-785.19,0.00013698,2]
[352988483,1739476243473,-403.73058696,0.00013698,2]
[352988496,1739476243611,-732.542,0.00013698,2]
[352988502,1739476243657,-726.11741304,0.00013698,2]
[352988504,1739476243667,-500.0,0.00013698,2]
[352988506,1739476243676,-575.95,0.00013698,2]
[352988508,1739476243686,-79.03393548,0.00013698,2]
[352988510,1739476243697,-1129.47606452,0.00013698,2]
[352988512,1739476243706,-268.44918742,0.00013698,2]
[352988514,1739476243718,-231.55081258,0.00013698,2]
[352988516,1739476243727,-500.0,0.00013698,2]
[352988518,1739476243736,-853.44920242,0.00013698,2]
[352988520,1739476243748,-301.50079758,0.00013698,2]
[352988522,1739476243758,-500.0,0.00013698,2]
[352988524,1739476243767,-640.66,0.00013698,2]
[352988526,1739476243776,-1993.24,0.00013698,2]
[352988528,1739476243786,-1450.89,0.00013698,2]
[352988530,1739476243795,-500.0,0.00013698,2]
[352988533,1739476243805,-500.0,0.00013698,2]
[352988534,1739476243815,-500.0,0.00013698,2]
[352988536,1739476243825,-536.96,0.00013698,2]
[352988538,1739476243834,-500.0,0.00013698,2]
[352988540,1739476243843,-983.75,0.00013698,2]
[352988542,1739476243853,-8.16533623,0.00013698,2]
[352988546,1739476243876,-491.83466377,0.00013698,2]
[352988548,1739476243890,-500.0,0.00013698,2]
[352988550,1739476243899,-289.54124344,0.00013698,2]
[352988553,1739476243918,-210.45875656,0.00013698,2]
[352988555,1739476243929,-500.0,0.00013698,2]
[352988557,1739476243939,-500.0,0.00013698,2]
[352988559,1739476243949,-500.0,0.00013698,2]
[352988561,1739476243960,-500.0,0.00013698,2]
[352988563,1739476243969,-695.54,0.00013698,2]
[352988565,1739476243979,-500.0,0.00013698,2]
[352988567,1739476243988,-500.0,0.00013698,2]
[352988569,1739476243998,-1565.95,0.00013698,2]
[352988571,1739476244009,-500.0,0.00013698,2]
[352988573,1739476244018,-1745.62,0.00013698,2]
[352988575,1739476244028,-2551.82,0.00013698,2]
[352988577,1739476244038,-500.0,0.00013698,2]
[352988579,1739476244048,-500.0,0.00013698,2]
[352988581,1739476244058,-1022.83,0.00013698,2]
[352988583,1739476244067,-1233.25,0.00013698,2]
[352988585,1739476244077,-626.33,0.00013698,2]
[352988587,1739476244087,-1994.97,0.00013698,2]
[352988589,1739476244096,-532.66350161,0.00013698,2]
[352988591,1739476244106,-340.4540674,0.00013698,2]
[352988593,1739476244116,-1311.07,0.00013698,2]
[352988595,1739476244125,-500.0,0.00013698,2]
[352988597,1739476244136,-1367.06,0.00013698,2]
[352988599,1739476244146,-2458.74,0.00013698,2]
[352988601,1739476244157,-1131.67,0.00013698,2]
[352988603,1739476244167,-500.0,0.00013698,2]
[352988605,1739476244176,-500.0,0.00013698,2]
[352988607,1739476244186,-1367.9,0.00013698,2]
[352988609,1739476244196,-500.0,0.00013698,2]
[352988611,1739476244206,-500.0,0.00013698,2]
[352988613,1739476244216,-565.9,0.00013698,2]
[352988615,1739476244226,-500.0,0.00013698,2]
[352988617,1739476244235,-500.0,0.00013698,2]
[352988619,1739476244244,-358.04303542,0.00013698,2]
[352988621,1739476244254,-1840.22,0.00013698,2]
[352988623,1739476244263,-1795.87,0.00013698,2]
[352988625,1739476244273,-640.36,0.00013698,2]
[352988627,1739476244282,-500.0,0.00013698,2]
[352988629,1739476244292,-947.46,0.00013698,2]
[352988631,1739476244301,-500.0,0.00013698,2]
[352988633,1739476244310,-500.0,0.00013698,2]
[352988635,1739476244319,-500.0,0.00013698,2]
[352988637,1739476244329,-500.0,0.00013698,2]
[352988639,1739476244338,-500.31939371,0.00013698,2]
[352988641,1739476244348,-1343.56,0.00013698,2]
[352988643,1739476244357,-1511.16,0.00013698,2]
[352988645,1739476244368,-500.0,0.00013698,2]
[352988647,1739476244379,-500.0,0.00013698,2]
[352988649,1739476244389,-2304.71,0.00013698,2]
[352988651,1739476244400,-500.0,0.00013698,2]
[352988653,1739476244410,-915.96,0.00013698,2]
[352988655,1739476244419,-500.0,0.00013698,2]
[352988657,1739476244430,-820.43,0.00013698,2]
[352988659,1739476244439,-865.06,0.00013698,2]
[352988661,1739476244448,-541.04,0.00013698,2]
[352988663,1739476244458,-778.94,0.00013698,2]
[352988665,1739476244467,-500.0,0.00013698,2]
[352988667,1739476244476,-500.0,0.00013698,2]
[352988668,1739476244485,-1803.52,0.00013698,2]
[352988669,1739476244495,-897.33,0.00013698,2]
[352988670,1739476244505,-500.0,0.00013698,2]
[352988671,1739476244515,-2453.46,0.00013698,2]
[352988672,1739476244524,-500.0,0.00013698,2]
[352988673,1739476244534,-2317.82,0.00013698,2]
[352988674,1739476244543,-3085.59,0.00013698,2]
[352988675,1739476244553,-500.0,0.00013698,2]
[352988676,1739476244562,-500.0,0.00013698,2]
[352988677,1739476244572,-500.0,0.00013698,2]
[352988678,1739476244582,-1543.42,0.00013698,2]
[352988679,1739476244591,-612.19,0.00013698,2]
[352988681,1739476244600,-518.85783118,0.00013698,2]
[352988683,1739476244609,-500.0,0.00013698,2]
[352988685,1739476244618,-500.0,0.00013698,2]
[352988687,1739476244628,-500.0,0.00013698,2]
[352988689,1739476244637,-1523.32,0.00013698,2]
[352988691,1739476244646,-500.0,0.00013698,2]
[352988693,1739476244656,-500.0,0.00013698,2]
[352988695,1739476244666,-1246.06,0.00013698,2]
[352988697,1739476244675,-500.0,0.00013698,2]
[352988699,1739476244685,-500.0,0.00013698,2]
[352988701,1739476244695,-1063.49,0.00013698,2]
[352988703,1739476244704,-500.0,0.00013698,2]
[352988704,1739476244714,-1111.76,0.00013698,2]
[352988706,1739476244724,-505.07218259,0.00013698,2]
[352988708,1739476244734,-500.0,0.00013698,2]
[352988710,1739476244744,-1124.51,0.00013698,2]
[352988712,1739476244754,-2135.88,0.00013698,2]
[352988715,1739476244764,-3756.57,0.00013698,2]
[352988717,1739476244774,-500.0,0.00013698,2]
[352988718,1739476244783,-2369.46,0.00013698,2]
[352988721,1739476244794,-500.0,0.00013698,2]
[352988722,1739476244804,-1717.33,0.00013698,2]
[352988724,1739476244814,-370.89607988,0.00013698,2]
[352988726,1739476244824,-792.36,0.00013698,2]
[352988728,1739476244834,-1388.02,0.00013698,2]
[352988731,1739476244845,-529.17,0.00013698,2]
[352988732,1739476244855,-500.0,0.00013698,2]
[352988734,1739476244865,-2820.04,0.00013698,2]
[352988735,1739476244875,-751.45,0.00013698,2]
[352988738,1739476244896,-1473.81,0.00013698,2]
[352988740,1739476244908,-500.0,0.00013698,2]
[352988741,1739476244924,-1639.34,0.00013698,2]
[352988743,1739476244935,-500.0,0.00013698,2]
[352988745,1739476244945,-500.0,0.00013698,2]
[352988747,1739476244954,-500.0,0.00013698,2]
[352988749,1739476244964,-1084.17,0.00013698,2]
[352988751,1739476244974,-1718.85,0.00013698,2]
[352988752,1739476244984,-500.0,0.00013698,2]
[352988753,1739476244994,-500.0,0.00013698,2]
[352988754,1739476245004,-409.96291131,0.00013698,2]
[352988755,1739476245014,-500.0,0.00013698,2]
[352988756,1739476245024,-500.0,0.00013698,2]
[352988757,1739476245035,-1146.79,0.00013698,2]
[352988758,1739476245044,-500.0,0.00013698,2]
[352988759,1739476245054,-1057.77,0.00013698,2]
[352988760,1739476245064,-500.0,0.00013698,2]
[352988761,1739476245074,-500.0,0.00013698,2]
[352988762,1739476245083,-975.74,0.00013698,2]
[352988763,1739476245093,-2143.08,0.00013698,2]
[352988764,1739476245102,-500.0,0.00013698,2]
[352988765,1739476245112,-500.0,0.00013698,2]
[352988766,1739476245122,-500.0,0.00013698,2]
[352988767,1739476245131,-2287.65,0.00013698,2]
[352988768,1739476245142,-183.22071543,0.00013698,2]
[352988771,1739476245151,-268.65837626,0.00013698,2]
[352988774,1739476245161,-2782.21,0.00013698,2]
[352988777,1739476245170,-804.28,0.00013698,2]
[352988780,1739476245179,-1564.05,0.00013698,2]
[352988783,1739476245190,-721.36,0.00013698,2]
[352988785,1739476245199,-500.0,0.00013698,2]
[352988789,1739476245210,-646.25,0.00013698,2]
[352988791,1739476245220,-616.58073283,0.00013698,2]
[352988794,1739476245229,-993.47,0.00013698,2]
[352988797,1739476245239,-500.0,0.00013698,2]
[352988800,1739476245248,-2863.75,0.00013698,2]
[352988803,1739476245258,-1752.21,0.00013698,2]
[352988805,1739476245268,-517.37880828,0.00013698,2]
[352988808,1739476245281,-2286.62,0.00013698,2]
[352988811,1739476245290,-500.0,0.00013698,2]
[352988814,1739476245301,-500.0,0.00013698,2]
[352988817,1739476245311,-1691.32,0.00013698,2]
[352988821,1739476245321,-2400.72,0.00013698,2]
[352988825,1739476245330,-500.0,0.00013698,2]
[352988829,1739476245339,-500.0,0.00013698,2]
[352988832,1739476245349,-500.0,0.00013698,2]
[352988835,1739476245359,-500.0,0.00013698,2]
[352988838,1739476245368,-500.0,0.00013698,2]
[352988841,1739476245378,-3231.66,0.00013698,2]
[352988844,1739476245387,-500.0,0.00013698,2]
[352988847,1739476245397,-609.81,0.00013698,2]
[352988850,1739476245406,-500.0,0.00013698,2]
[352988853,1739476245416,-501.58406037,0.00013698,2]
[352988856,1739476245426,-500.0,0.00013698,2]
[352988859,1739476245435,-500.0,0.00013698,2]
[352988862,1739476245445,-500.0,0.00013698,2]
[352988865,1739476245455,-587.03,0.00013698,2]
[352988867,1739476245465,-500.0,0.00013698,2]
[352988870,1739476245475,-1323.62,0.00013698,2]
[352988873,1739476245486,-500.0,0.00013698,2]
[352988875,1739476245495,-500.0,0.00013698,2]
[352988878,1739476245505,-902.74,0.00013698,2]
[352988881,1739476245515,-500.0,0.00013698,2]
[352988884,1739476245524,-502.77235847,0.00013698,2]
[352988887,1739476245534,-500.0,0.00013698,2]
[352988890,1739476245543,-643.25,0.00013698,2]
[352988893,1739476245553,-703.94,0.00013698,2]
[352988896,1739476245563,-500.0,0.00013698,2]
[352988899,1739476245572,-500.0,0.00013698,2]
[352988902,1739476245581,-2031.88,0.00013698,2]
[352988905,1739476245591,-500.62881868,0.00013698,2]
[352988908,1739476245601,-500.0,0.00013698,2]
[352988911,1739476245610,-2112.37,0.00013698,2]
[352988914,1739476245619,-1710.06,0.00013698,2]
[352988916,1739476245629,-500.0,0.00013698,2]
[352988919,1739476245638,-300.0,0.00013698,2]
[352988922,1739476245647,-500.0,0.00013698,2]
[352988925,1739476245656,-1405.28,0.00013698,2]
[352988928,1739476245666,-805.95,0.00013698,2]
[352988931,1739476245675,-500.0,0.00013698,2]
[352988934,1739476245684,-2275.01,0.00013698,2]
[352988937,1739476245693,-945.53,0.00013698,2]
[352988940,1739476245702,-500.0,0.00013698,2]
[352988943,1739476245712,-1704.8,0.00013698,2]
[352988945,1739476245721,-500.0,0.00013698,2]
[352988948,1739476245730,-500.0,0.00013698,2]
[352988951,1739476245740,-500.0,0.00013698,2]
[352988954,1739476245749,-512.85118256,0.00013698,2]
[352988956,1739476245759,-251.90601791,0.00013698,2]
[352988959,1739476245768,-510.11505291,0.00013698,2]
[352988962,1739476245777,-791.6,0.00013698,2]
[352988965,1739476245786,-500.0,0.00013698,2]
[352988968,1739476245795,-665.99,0.00013698,2]
[352988970,1739476245806,-4819.69,0.00013698,2]
[352988972,1739476245815,-1361.0,0.00013698,2]
[352988974,1739476245825,-641.6581144,0.00013698,2]
[352988976,1739476245834,-763.78,0.00013698,2]
[352988978,1739476245843,-309.60202111,0.00013698,2]
[352988980,1739476245853,-500.0,0.00013698,2]
[352988982,1739476245862,-500.0,0.00013698,2]
[352988985,1739476245872,-500.0,0.00013698,2]
[352988988,1739476245885,-500.0,0.00013698,2]
[352988991,1739476245895,-1143.5,0.00013698,2]
[352988993,1739476245905,-500.0,0.00013698,2]
[352988996,1739476245914,-500.0,0.00013698,2]
[352988999,1739476245923,-522.89,0.00013698,2]
[352989002,1739476245933,-516.59041026,0.00013698,2]
[352989005,1739476245942,-502.52407061,0.00013698,2]
[352989008,1739476245954,-500.0,0.00013698,2]
[352989011,1739476245964,-2890.76,0.00013698,2]
[352989014,1739476245974,-500.0,0.00013698,2]
[352989016,1739476245983,-503.85664457,0.00013698,2]
[352989020,1739476245993,-500.0,0.00013698,2]
[352989023,1739476246003,-1483.74,0.00013698,2]
[352989026,1739476246012,-500.0,0.00013698,2]
[352989029,1739476246022,-500.0,0.00013698,2]
[352989031,1739476246032,-516.14,0.00013698,2]
[352989034,1739476246041,-500.0,0.00013698,2]
[352989037,1739476246051,-500.0,0.00013698,2]
[352989040,1739476246061,-517.93,0.00013698,2]
[352989043,1739476246070,-500.0,0.00013698,2]
[352989046,1739476246079,-4535.24,0.00013698,2]
[352989049,1739476246089,-500.0,0.00013698,2]
[352989052,1739476246099,-809.64,0.00013698,2]
[352989055,1739476246108,-178.32381791,0.00013698,2]
[352989058,1739476246117,-500.0,0.00013698,2]
[352989061,1739476246126,-1165.72,0.00013698,2]
[352989064,1739476246135,-964.5,0.00013698,2]
[352989067,1739476246144,-4512.81,0.00013698,2]
[352989070,1739476246153,-2758.98,0.00013698,2]
[352989073,1739476246163,-819.2,0.00013698,2]
[352989076,1739476246173,-3586.87,0.00013698,2]
[352989079,1739476246182,-500.0,0.00013698,2]
[352989082,1739476246191,-1943.0,0.00013698,2]
[352989085,1739476246201,-500.0,0.00013698,2]
[352989088,1739476246210,-574.39,0.00013698,2]
[352989091,1739476246224,-500.0,0.00013698,2]
[352989092,1739476246235,-2498.72,0.00013698,2]
[352989095,1739476246244,-2554.15,0.00013698,2]
[352989098,1739476246254,-956.46,0.00013698,2]
[352989100,1739476246264,-500.0,0.00013698,2]
[352989102,1739476246273,-949.92,0.00013698,2]
[352989104,1739476246283,-3876.64,0.00013698,2]
[352989106,1739476246292,-500.0,0.00013698,2]
[352989107,1739476246302,-1355.2,0.00013698,2]
[352989109,1739476246312,-2614.33,0.00013698,2]
[352989111,1739476246321,-5205.11,0.00013698,2]
[352989113,1739476246330,-500.0,0.00013698,2]
[352989115,1739476246339,-513.1,0.00013698,2]
[352989117,1739476246349,-500.0,0.00013698,2]
[352989119,1739476246358,-1937.98,0.00013698,2]
[352989122,1739476246367,-5696.3,0.00013698,2]
[352989124,1739476246377,-500.0,0.00013698,2]
[352989127,1739476246386,-500.0,0.00013698,2]
[352989130,1739476246395,-2607.59,0.00013698,2]
[352989133,1739476246404,-160.9799397,0.00013698,2]
[352989135,1739476246414,-500.0,0.00013698,2]
[352989138,1739476246423,-500.0,0.00013698,2]
[352989141,1739476246433,-682.97,0.00013698,2]
[352989144,1739476246443,-500.0,0.00013698,2]
[352989147,1739476246452,-500.0,0.00013698,2]
[352989151,1739476246462,-500.0,0.00013698,2]
[352989155,1739476246472,-2955.24,0.00013698,2]
[352989156,1739476246481,-500.0,0.00013698,2]
[352989159,1739476246492,-500.0,0.00013698,2]
[352989162,1739476246502,-500.0,0.00013698,2]
[352989166,1739476246512,-1493.44,0.00013698,2]
[352989168,1739476246523,-1021.76,0.00013698,2]
[352989171,1739476246533,-3555.44,0.00013698,2]
[352989174,1739476246543,-7409.22,0.00013698,2]
[352989177,1739476246553,-500.0,0.00013698,2]
[352989180,1739476246563,-500.0,0.00013698,2]
[352989183,1739476246572,-500.0,0.00013698,2]
[352989186,1739476246581,-500.0,0.00013698,2]
[352989189,1739476246591,-2623.56,0.00013698,2]
[352989192,1739476246601,-624.33,0.00013698,2]
[352989195,1739476246610,-500.0,0.00013698,2]
[352989197,1739476246619,-500.0,0.00013698,2]
[352989200,1739476246629,-3691.41,0.00013698,2]
[352989203,1739476246638,-500.0,0.00013698,2]
[352989206,1739476246647,-500.0,0.00013698,2]
[352989209,1739476246658,-500.0,0.00013698,2]
[352989212,1739476246667,-3351.75,0.00013698,2]
[352989215,1739476246677,-2679.24,0.00013698,2]
[352989218,1739476246686,-3476.53,0.00013698,2]
[352989221,1739476246695,-1088.44,0.00013698,2]
[352989224,1739476246705,-500.0,0.00013698,2]
[352989227,1739476246714,-2263.43,0.00013698,2]
[352989230,1739476246725,-656.65,0.00013698,2]
[352989233,1739476246734,-535.29397655,0.00013698,2]
[352989235,1739476246744,-504.19022145,0.00013698,2]
[352989237,1739476246754,-503.46165709,0.00013698,2]
[352989239,1739476246763,-528.58,0.00013698,2]
[352989240,1739476246772,-1350.97,0.00013698,2]
[352989242,1739476246781,-500.0,0.00013698,2]
[352989244,1739476246791,-4576.66,0.00013698,2]
[352989246,1739476246799,-500.0,0.00013698,2]
[352989248,1739476246809,-1272.94,0.00013698,2]
[352989250,1739476246819,-500.0,0.00013698,2]
[352989252,1739476246829,-2991.99,0.00013698,2]
[352989254,1739476246838,-500.0,0.00013698,2]
[352989256,1739476246848,-2600.96,0.00013698,2]
[352989258,1739476246858,-500.0,0.00013698,2]
[352989260,1739476246867,-500.0,0.00013698,2]
[352989262,1739476246877,-874.47,0.00013698,2]
[352989264,1739476246891,-2545.6,0.00013698,2]
[352989266,1739476246900,-3425.42,0.00013698,2]
[352989268,1739476246910,-500.0,0.00013698,2]
[352989270,1739476246919,-4774.99,0.00013698,2]
[352989272,1739476246930,-500.0,0.00013698,2]
[352989274,1739476246939,-529.71,0.00013698,2]
[352989276,1739476246950,-5928.01,0.00013698,2]
[352989278,1739476246960,-500.0,0.00013698,2]
[352989280,1739476246969,-500.0,0.00013698,2]
[352989282,1739476246979,-3907.46,0.00013698,2]
[352989284,1739476246988,-500.0,0.00013698,2]
[352989286,1739476246998,-500.0,0.00013698,2]
[352989288,1739476247008,-783.59,0.00013698,2]
[352989290,1739476247018,-500.0,0.00013698,2]
[352989312,1739476247229,-500.0,0.00013698,2]
[352989314,1739476247241,-6021.49,0.00013698,2]
[352989316,1739476247252,-517.28,0.00013698,2]
[352989318,1739476247262,-500.0,0.00013698,2]
[352989320,1739476247272,-500.0,0.00013698,2]
[352989322,1739476247281,-500.0,0.00013698,2]
[352989324,1739476247291,-1379.01,0.00013698,2]
[352989326,1739476247302,-4886.19,0.00013698,2]
[352989328,1739476247312,-4756.56,0.00013698,2]
[352989330,1739476247322,-500.0,0.00013698,2]
[352989332,1739476247331,-2134.99,0.00013698,2]
[352989334,1739476247341,-4709.47,0.00013698,2]
[352989336,1739476247350,-1609.32,0.00013698,2]
[352989338,1739476247360,-600.28,0.00013698,2]
[352989340,1739476247369,-500.0,0.00013698,2]
[352989342,1739476247379,-500.0,0.00013698,2]
[352989344,1739476247389,-500.0,0.00013698,2]
[352989346,1739476247399,-963.53,0.00013698,2]
[352989348,1739476247409,-1994.44,0.00013698,2]
[352989350,1739476247419,-3106.28,0.00013698,2]
[352989352,1739476247429,-500.0,0.00013698,2]
[352989354,1739476247439,-12128.63,0.00013698,2]
[352989356,1739476247449,-500.0,0.00013698,2]
[352989358,1739476247458,-500.0,0.00013698,2]
[352989361,1739476247468,-500.0,0.00013698,2]
[352989363,1739476247478,-4013.9,0.00013698,2]
[352989364,1739476247488,-4103.14,0.00013698,2]
[352989366,1739476247497,-975.13,0.00013698,2]
[352989368,1739476247507,-2010.26,0.00013698,2]
[352989370,1739476247517,-1331.58,0.00013698,2]
[352989371,1739476247526,-712.83,0.00013698,2]
[352989372,1739476247535,-2289.14,0.00013698,2]
[352989373,1739476247545,-798.96,0.00013698,2]
[352989374,1739476247554,-500.0,0.00013698,2]
[352989375,1739476247563,-3142.43,0.00013698,2]
[352989376,1739476247573,-4911.93,0.00013698,2]
[352989377,1739476247582,-2849.8,0.00013698,2]
[352989379,1739476247592,-3990.38,0.00013698,2]
[352989381,1739476247601,-500.0,0.00013698,2]
[352989383,1739476247611,-503.67247178,0.00013698,2]
[352989385,1739476247620,-500.0,0.00013698,2]
[352989387,1739476247630,-195.12767967,0.00013698,2]
[352989389,1739476247639,-881.51,0.00013698,2]
[352989391,1739476247648,-522.08,0.00013698,2]
[352989393,1739476247657,-1525.91,0.00013698,2]
[352989395,1739476247667,-2285.01,0.00013698,2]
[352989397,1739476247677,-11448.87,0.00013698,2]
[352989399,1739476247687,-532.59,0.00013698,2]
[352989401,1739476247697,-193.64033179,0.00013698,2]
[352989403,1739476247707,-3819.12,0.00013698,2]
[352989405,1739476247716,-4420.81,0.00013698,2]
[352989407,1739476247726,-3744.22,0.00013698,2]
[352989409,1739476247736,-500.0,0.00013698,2]
[352989411,1739476247746,-500.0,0.00013698,2]
[352989413,1739476247756,-3137.12,0.00013698,2]
[352989416,1739476247766,-500.0,0.00013698,2]
[352989418,1739476247777,-500.0,0.00013698,2]
[352989419,1739476247786,-2069.13,0.00013698,2]
[352989421,1739476247796,-2669.58,0.00013698,2]
[352989424,1739476247807,-666.69,0.00013698,2]
[352989426,1739476247817,-4189.75,0.00013698,2]
[352989427,1739476247827,-500.0,0.00013698,2]
[352989429,1739476247836,-500.0,0.00013698,2]
[352989432,1739476247846,-1198.13,0.00013698,2]
[352989433,1739476247855,-500.0,0.00013698,2]
[352989435,1739476247865,-500.0,0.00013698,2]
[352989437,1739476247875,-616.6,0.00013698,2]
[352989439,1739476247890,-4836.97,0.00013698,2]
[352989442,1739476247900,-500.0,0.00013698,2]
[352989444,1739476247910,-3647.39,0.00013698,2]
[352989445,1739476247919,-744.55,0.00013698,2]
[352989448,1739476247931,-2209.66,0.00013698,2]
[352989450,1739476247940,-761.56,0.00013698,2]
[352989452,1739476247950,-500.0,0.00013698,2]
[352989454,1739476247961,-606.99,0.00013698,2]
[352989456,1739476247970,-500.0,0.00013698,2]
[352989458,1739476247980,-4079.52,0.00013698,2]
[352989460,1739476247990,-2437.55,0.00013698,2]
[352989461,1739476247999,-4147.62,0.00013698,2]
[352989464,1739476248010,-3690.83,0.00013698,2]
[352989466,1739476248019,-3687.73,0.00013698,2]
[352989468,1739476248029,-500.0,0.00013698,2]
[352989470,1739476248041,-714.09,0.00013698,2]
[352989472,1739476248051,-500.0,0.00013698,2]
[352989474,1739476248060,-500.0,0.00013698,2]
[352989476,1739476248070,-664.31,0.00013698,2]
[352989478,1739476248079,-1743.87,0.00013698,2]
[352989480,1739476248089,-3991.62,0.00013698,2]
[352989482,1739476248099,-500.0,0.00013698,2]
[352989484,1739476248109,-500.09,0.00013698,2]
[352989486,1739476248119,-500.0,0.00013698,2]
[352989488,1739476248129,-5993.13,0.00013698,2]
[352989490,1739476248139,-5950.68,0.00013698,2]
[352989492,1739476248149,-4562.86,0.00013698,2]
[352989494,1739476248158,-1603.98,0.00013698,2]
[352989496,1739476248168,-510.96,0.00013698,2]
[352989498,1739476248178,-177.14126873,0.00013698,2]
[352989500,1739476248188,-500.0,0.00013698,2]
[352989502,1739476248199,-500.0,0.00013698,2]
[352989504,1739476248210,-2608.68,0.00013698,2]
[352989506,1739476248220,-4065.79,0.00013698,2]
[352989508,1739476248230,-1725.47,0.00013698,2]
[352989510,1739476248240,-500.0,0.00013698,2]
[352989512,1739476248250,-5895.51,0.00013698,2]
[352989514,1739476248260,-711.87,0.00013698,2]
[352989516,1739476248271,-500.0,0.00013698,2]
[352989518,1739476248282,-500.0,0.00013698,2]
[352989520,1739476248292,-1137.75,0.00013698,2]
[352989522,1739476248302,-2712.64,0.00013698,2]
[352989524,1739476248311,-3511.68,0.00013698,2]
[352989526,1739476248320,-857.4,0.00013698,2]
[352989528,1739476248330,-4874.2,0.00013698,2]
[352989530,1739476248340,-500.0,0.00013698,2]
[352989532,1739476248351,-512.18085431,0.00013698,2]
[352989534,1739476248361,-3183.76,0.00013698,2]
[352989536,1739476248372,-211.89855267,0.00013698,2]
[352989538,1739476248382,-500.0,0.00013698,2]
[352989540,1739476248393,-500.0,0.00013698,2]
[352989542,1739476248403,-3233.26,0.00013698,2]
[352989544,1739476248414,-10057.66,0.00013698,2]
[352989546,1739476248425,-1496.59,0.00013698,2]
[352989548,1739476248436,-500.0,0.00013698,2]
[352989550,1739476248446,-6158.52,0.00013698,2]
[352989552,1739476248457,-953.25,0.00013698,2]
[352989554,1739476248466,-500.0,0.00013698,2]
[352989556,1739476248477,-1449.46,0.00013698,2]
[352989558,1739476248486,-664.34,0.00013698,2]
[352989560,1739476248496,-6113.65,0.00013698,2]
[352989562,1739476248506,-3963.8,0.00013698,2]
[352989564,1739476248517,-500.0,0.00013698,2]
[352989566,1739476248527,-1469.36,0.00013698,2]
[352989568,1739476248538,-3943.23,0.00013698,2]
[352989570,1739476248548,-500.0,0.00013698,2]
[352989572,1739476248558,-1675.05,0.00013698,2]
[352989574,1739476248568,-509.24405293,0.00013698,2]
[352989576,1739476248579,-1687.97,0.00013698,2]
[352989578,1739476248589,-737.23,0.00013698,2]
[352989580,1739476248599,-500.0,0.00013698,2]
[352989582,1739476248609,-500.0,0.00013698,2]
[352989584,1739476248619,-500.0,0.00013698,2]
[352989586,1739476248628,-4113.73,0.00013698,2]
[352989588,1739476248639,-541.07,0.00013698,2]
[352989590,1739476248649,-814.35,0.00013698,2]
[352989592,1739476248658,-500.0,0.00013698,2]
[352989594,1739476248668,-4058.94,0.00013698,2]
[352989596,1739476248678,-500.0,0.00013698,2]
[352989598,1739476248688,-500.0,0.00013698,2]
[352989600,1739476248699,-1054.28,0.00013698,2]
[352989602,1739476248709,-3674.9,0.00013698,2]
[352989604,1739476248719,-500.0,0.00013698,2]
[352989606,1739476248729,-5177.18,0.00013698,2]
[352989608,1739476248740,-4234.01,0.00013698,2]
[352989610,1739476248750,-4604.92,0.00013698,2]